bitfinex-derivatives/quotes_SOLF0:USTF0_20250329
["timestamp","ask_amount","ask_price","bid_price","bid_amount"]
[1743230144647,9.57950887,127.12,127.08,28.06]
[1743230144847,0.05109779,127.1,127.08,28.1178899]
[1743230145044,7.8714,127.09,127.08,28.1178899]
[1743230146248,7.8714,127.09,127.08,0.0578899]
[1743230146649,7.92199779,127.1,127.08,0.0578899]
[1743230147148,0.05109779,127.1,127.08,0.0578899]
[1743230147547,0.05109779,127.1,127.09,28.06]
[1743230148248,0.05109779,127.1,127.09,35.9314]
[1743230152253,0.05109779,127.1,127.09,50.82507993]
[1743230152850,3.2499,127.15,127.12,7.8691]
[1743230153152,3.2499,127.15,127.12,35.9291]
[1743230153350,14.89367993,127.2,127.13,7.8689]
[1743230153650,3.4071,127.18,127.12,28.06]
[1743230153955,0.05908224,127.16,127.14,0.0525464]
[1743230154655,7.8677,127.15,127.14,0.0525464]
[1743230155156,0.05908224,127.16,127.12,28.06]
[1743230155753,7.8701,127.12,127.1,28.06]
[1743230156254,7.92814899,127.12,127.1,28.1137193]
[1743230156555,7.8701,127.11,127.1,28.1137193]
[1743230156856,0.05804899,127.12,127.1,28.1137193]
[1743230157357,7.92784899,127.12,127.1,28.1137193]
[1743230157657,0.05804899,127.12,127.1,28.1137193]
[1743230158460,7.92764899,127.12,127.1,28.1137193]
[1743230160160,0.05804899,127.12,127.1,28.1137193]
[1743230160350,0.05804899,127.12,127.1,35.9844193]
[1743230162661,0.05804899,127.12,127.11,7.8701]
[1743230163063,0.05804899,127.12,127.1,35.9842193]
[1743230165459,0.05804899,127.12,127.11,7.8701]
[1743230168864,0.05804899,127.12,127.11,17.39465405]
[1743230171562,3.4071,127.18,127.11,9.52455405]
[1743230171865,3.4071,127.18,127.14,9.52455405]
[1743230172166,7.8669,127.17,127.14,45.43255405]
[1743230172665,7.92047965,127.17,127.14,45.48924855]
[1743230172864,0.05357965,127.17,127.14,37.62124855]
[1743230173267,7.8677,127.15,127.14,37.62124855]
[1743230175877,7.8677,127.15,127.14,28.0966945]
[1743230179773,7.8673,127.16,127.14,28.0966945]
[1743230180169,0.05357965,127.17,127.14,37.62124855]
[1743230180374,0.05357965,127.17,127.15,7.8672]
[1743230182574,7.92007965,127.17,127.14,45.48924855]
[1743230184980,7.92007965,127.17,127.14,37.62124855]
[1743230185181,0.05357965,127.17,127.15,7.8675]
[1743230185987,0.05357965,127.17,127.15,17.39205405]
[1743230187185,0.05357965,127.17,127.15,9.52455405]
[1743230187386,0.05357965,127.17,127.14,28.0966945]
[1743230187986,9.5781337,127.17,127.14,28.0966945]
[1743230188188,7.867,127.16,127.14,28.0966945]
[1743230188691,0.05357965,127.17,127.14,28.0966945]
[1743230190192,7.8677,127.15,127.14,28.0966945]
[1743230193895,0.05357965,127.17,127.14,28.0966945]
[1743230194488,7.8672,127.16,127.14,28.0966945]
[1743230201498,7.8677,127.15,127.14,28.0966945]
[1743230202509,7.8673,127.16,127.14,28.0966945]
[1743230203807,7.8677,127.15,127.14,28.0966945]
[1743230209713,0.05357965,127.17,127.14,28.0966945]
[1743230209914,0.05357965,127.17,127.15,9.52455405]
[1743230210211,7.92007965,127.17,127.15,9.52455405]
[1743230213313,0.05357965,127.17,127.15,9.52455405]
[1743230215215,0.05357965,127.17,127.15,17.39185405]
[1743230221217,0.05357965,127.17,127.15,9.52455405]
[1743230221516,0.05357965,127.17,127.14,28.0966945]
[1743230221709,7.8674,127.16,127.14,28.0966945]
[1743230222613,7.8674,127.16,127.14,0.0566945]
[1743230222818,7.92017965,127.17,127.15,28.02]
[1743230224218,7.867,127.16,127.15,28.02]
[1743230224917,7.867,127.16,127.14,0.0566945]
[1743230225122,7.8677,127.15,127.14,0.0566945]
[1743230225322,9.5781337,127.17,127.14,0.0566945]
[1743230225919,7.8674,127.16,127.14,0.0566945]
[1743230228021,9.5781337,127.17,127.14,7.9248945]
[1743230228216,0.05357965,127.17,127.15,9.52455405]
[1743230229225,0.05357965,127.17,127.15,17.39185405]
[1743230230623,0.05357965,127.17,127.16,28.02]
[1743230231622,7.91997965,127.17,127.16,28.02]
[1743230233834,7.8677,127.15,127.14,0.0566945]
[1743230235131,12.83455405,127.16,127.1,445.65500538]
[1743230235132,16.21705405,127.16,127.1,445.65500538]
[1743230235429,9.52455405,127.14,127.1,81.65500538]
[1743230235630,7.8699,127.12,127.1,81.65500538]
[1743230236129,7.92984712,127.12,127.1,81.70759797]
[1743230236630,7.8701,127.11,127.1,81.70759797]
[1743230237532,7.8701,127.11,127.1,53.68759797]
[1743230237931,7.8701,127.11,127.1,0.05259259]
[1743230239332,17.39465405,127.11,127.1,0.05259259]
[1743230239839,9.52455405,127.11,127.06,62.52598745]
[1743230240038,9.52455405,127.1,127.06,34.50598745]
[1743230240542,9.52455405,127.09,127.06,1.57405949]
[1743230241044,7.8726,127.07,127.06,1.62600622]
[1743230241339,7.8726,127.07,127.06,0.05194673]
[1743230244549,7.8722,127.08,127.06,0.05194673]
[1743230246048,17.45645369,127.09,127.06,0.05194673]
[1743230246446,0.06019964,127.09,127.07,28.04]
[1743230247750,7.93169964,127.09,127.07,28.04]
[1743230250652,7.872,127.08,127.07,28.04]
[1743230251249,7.8725,127.08,127.06,0.05194673]
[1743230251551,0.06019964,127.09,127.06,9.57650078]
[1743230252152,7.93189964,127.09,127.06,17.44970078]
[1743230253754,7.93189964,127.09,127.06,9.57650078]
[1743230254756,7.93189964,127.09,127.06,17.44960078]
[1743230255559,0.06019964,127.09,127.06,17.44960078]
[1743230256061,7.93189964,127.09,127.06,17.44960078]
[1743230257858,7.8721,127.08,127.06,9.57650078]
[1743230258059,0.06019964,127.09,127.06,9.57650078]
[1743230258263,7.8726,127.08,127.06,9.57650078]
[1743230258461,0.06019964,127.09,127.06,9.57650078]
[1743230259057,7.93199964,127.09,127.06,17.44970078]
[1743230259565,0.06019964,127.09,127.06,9.57650078]
[1743230260565,7.93199964,127.09,127.06,17.44940078]
[1743230261171,0.06019964,127.09,127.07,7.8726]
[1743230261664,0.06019964,127.09,127.08,28.04]
[1743230263567,7.93159964,127.09,127.08,28.04]
[1743230265967,7.8725,127.08,127.06,0.05194673]
[1743230266168,9.58475369,127.09,127.06,0.05194673]
[1743230267073,7.8725,127.08,127.06,0.05194673]
[1743230268061,0.06019964,127.09,127.08,7.872]
[1743230268271,0.06019964,127.09,127.08,45.41655405]
[1743230268668,17.39195405,127.16,127.1,7.8702]
[1743230268973,17.39195405,127.16,127.11,37.54455405]
[1743230269375,17.39195405,127.16,127.11,45.41435405]
[1743230269774,0.05785113,127.15,127.12,0.05385886]
[1743230271769,0.05785113,127.15,127.12,7.92335886]
[1743230273379,7.92555113,127.15,127.12,7.92335886]
[1743230276983,0.05785113,127.15,127.12,7.92335886]
[1743230277677,7.92555113,127.15,127.12,7.92335886]
[1743230278085,0.05785113,127.15,127.12,7.92335886]
[1743230278783,0.05785113,127.15,127.13,7.8689]
[1743230280386,7.92555113,127.15,127.12,7.92315886]
[1743230280989,0.05785113,127.15,127.13,7.8689]
[1743230282091,0.05785113,127.15,127.14,7.8683]
[1743230282286,0.05785113,127.15,127.12,0.05385886]
[1743230282985,0.05785113,127.15,127.13,7.8686]
[1743230283989,0.05785113,127.15,127.12,0.05385886]
[1743230283990,0.05785113,127.15,127.14,35.8883]
[1743230285595,0.05785113,127.15,127.14,28.02]
[1743230286804,634.99302663,127.3,127.14,28.02]
[1743230287096,56.17231609,127.24,127.18,9.52455405]
[1743230287398,56.17231609,127.24,127.19,28.02]
[1743230287790,56.17231609,127.24,127.19,37.54455405]
[1743230287990,0.04481597,127.23,127.2,0.06020223]
[1743230288187,9.52455405,127.22,127.2,0.06020223]
[1743230288699,7.864,127.21,127.2,0.06020223]
[1743230289898,17.38815405,127.22,127.2,0.06020223]
[1743230290098,7.8636,127.22,127.2,0.06020223]
[1743230292105,7.90781597,127.23,127.2,0.06020223]
[1743230292999,7.90781597,127.23,127.2,7.92470223]
[1743230293707,0.04481597,127.23,127.2,7.92470223]
[1743230293903,0.04481597,127.23,127.21,17.38835405]
[1743230294100,0.04481597,127.23,127.22,28.0]
[1743230296498,0.04481597,127.23,127.22,37.52455405]
[1743230297011,0.04481597,127.23,127.22,45.38785405]
[1743230301608,7.8605,127.27,127.22,9.52455405]
[1743230301912,7.8605,127.27,127.25,9.52455405]
[1743230302112,7.8605,127.27,127.24,9.52455405]
[1743230302312,7.8609,127.26,127.25,28.0]
[1743230302611,3.3803,127.28,127.25,28.0]
[1743230302809,11.2402,127.28,127.25,37.52455405]
[1743230303213,7.8599,127.28,127.26,9.52455405]
[1743230303506,16.76495405,127.31,127.26,9.52455405]
[1743230303712,16.76495405,127.31,127.25,37.52455405]
[1743230304013,16.76495405,127.31,127.27,0.05289855]
[1743230304212,7.8596,127.28,127.27,0.05289855]
[1743230309209,7.8592,127.29,127.27,0.05289855]
[1743230311116,7.8596,127.28,127.27,0.05289855]
[1743230312417,7.8609,127.26,127.25,28.0]
[1743230312613,7.8609,127.26,127.24,27.98]
[1743230313221,7.8615,127.25,127.24,27.98]
[1743230313415,7.8615,127.25,127.24,28.03028988]
[1743230315112,7.91399855,127.26,127.24,28.03028988]
[1743230315919,7.8615,127.25,127.24,28.03028988]
[1743230317917,7.8615,127.25,127.24,0.05028988]
[1743230337333,7.864,127.21,127.19,9.52455405]
[1743230337634,9.52455405,127.2,127.17,31.72823641]
[1743230337832,9.52455405,127.18,127.17,20.78343641]
[1743230338130,9.52455405,127.18,127.17,12.01443641]
[1743230338432,17.39035405,127.18,127.17,12.01443641]
[1743230339332,17.39035405,127.18,127.16,87.87371402]
[1743230339333,7.8664,127.17,127.16,0.05523946]
[1743230342133,37.52455405,127.17,127.09,401.52455405]
[1743230342333,9.52455405,127.13,127.08,1.9574]
[1743230342533,7.8714,127.09,127.08,1.9574]
[1743230342931,9.52455405,127.11,127.07,115.81847456]
[1743230343232,0.05049304,127.1,127.08,0.05090923]
[1743230343632,9.52455405,127.09,127.08,0.05090923]
[1743230344233,17.39595405,127.09,127.08,0.05090923]
[1743230346535,9.52455405,127.09,127.08,0.05090923]
[1743230347637,17.39595405,127.09,127.08,0.05090923]
[1743230349936,9.52455405,127.09,127.05,3.3007]
[1743230350238,9.52455405,127.06,127.03,3.3688]
[1743230350434,9.52455405,127.07,127.03,3.3688]
[1743230350939,9.52455405,127.09,127.04,7.8744]
[1743230351135,9.52455405,127.09,127.04,7.93339488]
[1743230351340,0.05652412,127.06,127.04,0.05899488]
[1743230352139,9.52455405,127.05,127.04,0.05899488]
[1743230352843,17.39845405,127.05,127.04,0.05899488]
[1743230358743,0.05652412,127.06,127.04,0.05899488]
[1743230359547,7.8739,127.05,127.04,0.05899488]
[1743230359848,0.05652412,127.06,127.04,0.05899488]
[1743230360146,7.93012412,127.06,127.04,0.05899488]
[1743230360549,0.05652412,127.06,127.04,28.07899488]
[1743230360747,7.8729,127.07,127.04,45.47774893]
[1743230361750,7.9330071,127.07,127.04,45.47774893]
[1743230363253,7.8733,127.06,127.04,37.60354893]
[1743230363455,7.8733,127.06,127.04,28.07899488]
[1743230366464,0.0601071,127.07,127.05,7.8739]
[1743230366863,0.0601071,127.07,127.04,28.07899488]
[1743230367262,7.9327071,127.07,127.04,35.95309488]
[1743230367959,0.0601071,127.07,127.04,28.07899488]
[1743230368163,9.52455405,127.11,127.05,12.85515405]
[1743230368756,7.8715,127.09,127.06,7.8729]
[1743230368957,7.8715,127.09,127.07,28.02]
[1743230369157,7.92238311,127.09,127.07,28.02]
[1743230370459,0.05088311,127.09,127.07,35.8926]
[1743230370654,9.52455405,127.13,127.07,28.02]
[1743230370961,9.52455405,127.13,127.08,9.52455405]
[1743230371160,7.8699,127.12,127.08,17.39625405]
[1743230371360,9.52455405,127.13,127.08,17.39625405]
[1743230371558,7.87,127.12,127.08,17.39625405]
[1743230371761,9.52455405,127.11,127.09,0.05000004]
[1743230371962,9.52455405,127.1,127.09,0.05000004]
[1743230372466,0.04182279,127.11,127.09,0.05000004]
[1743230372860,9.52455405,127.14,127.09,9.57455409]
[1743230373063,9.52455405,127.14,127.1,28.02]
[1743230373262,17.39335405,127.14,127.1,35.8905]
[1743230373462,9.52455405,127.14,127.1,39.3495]
[1743230373769,9.52455405,127.14,127.1,31.479]
[1743230373962,17.39315405,127.14,127.11,0.05007942]
[1743230375669,9.52455405,127.14,127.11,7.91967942]
[1743230375966,7.8679,127.15,127.11,0.05007942]
[1743230376365,7.8679,127.15,127.12,7.8692]
[1743230377566,7.8671,127.16,127.13,7.8688]
[1743230377772,9.52455405,127.18,127.13,28.0]
[1743230377969,9.52455405,127.18,127.14,3.2952]
[1743230378166,9.52455405,127.18,127.14,3.35384843]
[1743230378862,9.52455405,127.18,127.14,11.22164843]
[1743230379371,7.8663,127.18,127.14,20.74620248]
[1743230379671,9.52455405,127.19,127.15,7.8676]
[1743230380066,17.39025405,127.19,127.16,0.05241896]
[1743230380464,9.52455405,127.19,127.16,0.05241896]
[1743230381571,17.39005405,127.19,127.16,28.05241896]
[1743230382566,9.52455405,127.22,127.17,9.52455405]
[1743230382771,20.38942592,127.23,127.19,9.52455405]
[1743230382971,28.25222592,127.23,127.2,7.8645]
[1743230383271,28.25222592,127.23,127.2,3.43274788]
[1743230383570,7.8635,127.22,127.2,3.43274788]
[1743230391076,7.8629,127.23,127.2,3.43274788]
[1743230393584,7.8638,127.22,127.2,3.43274788]
[1743230400193,7.8631,127.23,127.2,11.29724788]
[1743230400494,7.8631,127.23,127.2,20.82180193]
[1743230401896,7.8623,127.24,127.21,17.38845405]
[1743230402195,7.8623,127.24,127.2,3.43274788]
[1743230402196,52.75341609,127.27,127.22,37.50455405]
[1743230402696,7.8612,127.26,127.22,37.50455405]
[1743230403197,7.8612,127.26,127.23,7.8624]
[1743230404995,7.8612,127.26,127.23,17.38695405]
[1743230406007,7.8612,127.26,127.23,9.52455405]
[1743230407398,7.8606,127.27,127.23,9.52455405]
[1743230407697,7.8606,127.27,127.24,0.05616341]
[1743230408201,7.8609,127.26,127.24,0.05616341]
[1743230409296,9.52455405,127.28,127.24,7.91826341]
[1743230409499,9.52455405,127.28,127.24,0.05616341]
[1743230409797,7.8609,127.26,127.24,0.05616341]
[1743230410695,7.8615,127.25,127.24,0.05616341]
[1743230413394,10.86487187,127.27,127.24,0.05616341]
[1743230414197,7.8614,127.26,127.24,0.05616341]
[1743230416599,43.22886204,127.28,127.25,37.48455405]
[1743230416803,43.22886204,127.28,127.27,17.38475405]
[1743230417003,37.76316204,127.28,127.27,17.38475405]
[1743230421506,18.72237187,127.32,127.28,7.8591]
[1743230421707,18.72237187,127.32,127.29,27.96]
[1743230421908,18.72237187,127.32,127.29,28.01163463]
[1743230422507,18.72237187,127.32,127.29,35.87053463]
[1743230423917,10.86487187,127.32,127.3,9.52455405]
[1743230424211,10.86487187,127.32,127.31,9.52455405]
[1743230424509,5.33426286,127.32,127.31,17.38235405]
[1743230425211,255.99974395,127.34,127.33,7.8565]
[1743230425511,255.99974395,127.34,127.33,45.34105405]
[1743230427116,255.99974395,127.34,127.33,37.48455405]
[1743230428416,7.8555,127.35,127.33,37.48455405]
[1743230428716,7.855,127.36,127.33,37.48455405]
[1743230430726,7.8553,127.35,127.33,37.48455405]
[1743230434021,7.8559,127.34,127.33,37.48455405]
[1743230434224,9.52455405,127.38,127.33,37.48455405]
[1743230434423,7.8557,127.35,127.33,37.48455405]
[1743230444029,7.8559,127.34,127.33,37.48455405]
[1743230451230,7.8556,127.35,127.33,37.48455405]
[1743230452932,32.84638476,127.39,127.33,45.34075405]
[1743230453137,32.84638476,127.39,127.33,37.48455405]
[1743230453338,42.37093881,127.39,127.35,0.05575144]
[1743230454442,7.8546,127.37,127.35,0.05575144]
[1743230455341,7.8547,127.36,127.35,0.05575144]
[1743230460543,17.38455405,127.36,127.27,9.52455405]
[1743230460738,9.52455405,127.31,127.25,69.99730564]
[1743230461043,7.86,127.28,127.25,77.85830564]
[1743230461541,7.91500534,127.28,127.25,77.91750285]
[1743230462043,0.05500534,127.28,127.25,49.97750285]
[1743230462244,0.05500534,127.28,127.27,9.52455405]
[1743230462745,0.05500534,127.28,127.27,17.38475405]
[1743230467349,0.05500534,127.28,127.27,9.52455405]
[1743230471651,0.05500534,127.28,127.27,17.38475405]
[1743230474752,0.05500534,127.28,127.27,9.52455405]
[1743230477459,0.05500534,127.28,127.25,0.05919721]
[1743230477658,9.52455405,127.26,127.25,0.05919721]
[1743230478054,17.38545405,127.26,127.25,0.05919721]
[1743230478253,0.05500534,127.28,127.25,0.05919721]
[1743230478450,0.05500534,127.28,127.25,27.99919721]
[1743230479756,7.8603,127.27,127.25,27.99919721]
[1743230480252,7.8609,127.26,127.25,27.99919721]
[1743230483858,17.38545405,127.26,127.25,0.05919721]
[1743230486966,17.38545405,127.26,127.25,9.721e-05]
[1743230511297,7.8642,127.21,127.19,40.82205405]
[1743230512505,7.91538187,127.21,127.19,40.87581382]
[1743230513308,7.91538187,127.21,127.19,12.93581382]
[1743230513508,7.91538187,127.21,127.19,40.87581382]
[1743230513903,0.05118187,127.21,127.19,40.87581382]
[1743230514108,7.8646,127.2,127.19,31.35125977]
[1743230515609,7.8646,127.2,127.19,3.41125977]
[1743230516809,7.8646,127.2,127.19,0.05375977]
[1743230518512,17.43993592,127.21,127.19,0.05375977]
[1743230519816,9.52455405,127.24,127.2,27.94]
[1743230520412,17.38695405,127.24,127.2,35.8042]
[1743230520608,9.52455405,127.24,127.2,29.9191]
[1743230521112,0.05056314,127.23,127.21,0.05368547]
[1743230521815,7.91366314,127.23,127.21,0.05368547]
[1743230524211,0.05056314,127.23,127.21,0.05368547]
[1743230524515,7.91336314,127.23,127.21,0.05368547]
[1743230526808,0.05056314,127.23,127.21,7.91758547]
[1743230527008,0.05056314,127.23,127.21,9.57823952]
[1743230527214,9.52455405,127.25,127.21,9.57823952]
[1743230527917,17.38605405,127.25,127.22,7.863]
[1743230530117,9.52455405,127.25,127.22,7.863]
[1743230530319,9.52455405,127.27,127.23,7.8623]
[1743230530706,9.52455405,127.27,127.24,0.05243789]
[1743230530707,17.38525405,127.27,127.24,0.05243789]
[1743230530919,9.52455405,127.27,127.24,0.05243789]
[1743230532120,7.8615,127.25,127.24,0.05243789]
[1743230532815,17.38605405,127.25,127.24,0.05243789]
[1743230537322,7.864,127.21,127.2,2.0691]
[1743230551234,7.8646,127.2,127.19,9.58401057]
[1743230551431,7.8646,127.2,127.19,0.05945652]
[1743230551829,9.52455405,127.21,127.15,287.32]
[1743230552030,9.52455405,127.18,127.15,27.94]
[1743230552225,9.52455405,127.18,127.13,19.49055405]
[1743230552435,9.52455405,127.18,127.14,27.94]
[1743230552932,7.8666,127.17,127.15,0.05671023]
[1743230553137,0.05185704,127.17,127.15,0.05671023]
[1743230553741,86.99800946,127.29,127.15,9.58126428]
[1743230554037,9.52455405,127.25,127.19,9.52455405]
[1743230554237,9.52455405,127.25,127.2,27.94]
[1743230554436,17.38625405,127.25,127.2,35.8045]
[1743230554636,9.52455405,127.25,127.2,27.94]
[1743230554940,0.05449861,127.24,127.21,0.05719344]
[1743230555336,9.52455405,127.23,127.21,0.05719344]
[1743230555637,17.38765405,127.23,127.21,0.05719344]
[1743230558644,0.05449861,127.24,127.21,0.05719344]
[1743230560344,43.5261826,127.28,127.22,9.52455405]
[1743230560534,43.5261826,127.28,127.24,9.52455405]
[1743230561040,43.5261826,127.28,127.25,7.8614]
[1743230561546,51.3858826,127.28,127.25,7.91398175]
[1743230562547,43.5261826,127.28,127.25,7.91398175]
[1743230562748,43.5261826,127.28,127.26,7.8608]
[1743230563141,43.5261826,127.28,127.26,37.46455405]
[1743230563346,43.5261826,127.28,127.27,7.8602]
[1743230564149,20.40045189,127.31,127.27,7.8602]
[1743230564448,7.8584,127.3,127.26,37.46455405]
[1743230564647,7.8584,127.3,127.28,0.05789955]
[1743230570655,7.859,127.29,127.28,0.05789955]
[1743230574252,17.38355405,127.29,127.28,0.05789955]
[1743230574763,7.859,127.29,127.28,0.05789955]
[1743230590070,17.38315405,127.3,127.28,0.05789955]
[1743230590265,7.8586,127.3,127.28,0.05789955]
[1743230592567,9.52455405,127.34,127.29,37.44455405]
[1743230592868,43.5261826,127.35,127.29,37.44455405]
[1743230593072,43.5261826,127.35,127.31,9.52455405]
[1743230593266,43.5261826,127.35,127.32,30.0189]
[1743230593671,43.5261826,127.35,127.32,37.8757]
[1743230593869,51.3815826,127.35,127.32,37.8757]
[1743230594069,51.3815826,127.35,127.32,30.0189]
[1743230595371,7.8554,127.35,127.32,30.0189]
[1743230596868,43.5261826,127.38,127.33,9.52455405]
[1743230597266,53.05073665,127.38,127.34,0.05922161]
[1743230598176,9.52455405,127.38,127.34,0.05922161]
[1743230598772,7.8544,127.37,127.34,0.05922161]
[1743230599673,7.8544,127.37,127.35,27.9]
[1743230600073,7.8536,127.38,127.35,27.9]
[1743230604177,7.8541,127.37,127.35,27.9]
[1743230608973,7.8547,127.36,127.35,27.9]
[1743230609276,9.52455405,127.38,127.34,27.95922161]
[1743230609479,9.52455405,127.38,127.34,27.9]
[1743230609675,9.52455405,127.38,127.35,0.056261]
[1743230610277,7.8547,127.36,127.35,0.056261]
[1743230610677,7.8543,127.37,127.35,0.056261]
[1743230610875,7.8543,127.37,127.35,9.58081505]
[1743230613881,9.52455405,127.4,127.35,9.58081505]
[1743230614185,7.8547,127.36,127.35,0.056261]
[1743230617688,7.8544,127.37,127.35,0.056261]
[1743230617989,9.52455405,127.4,127.35,9.58081505]
[1743230618278,7.8534,127.39,127.35,17.43561505]
[1743230621283,7.8534,127.39,127.36,7.8547]
[1743230621484,7.8524,127.4,127.37,9.52455405]
[1743230621680,7.8524,127.4,127.37,37.42455405]
[1743230622890,7.8519,127.41,127.37,45.27855405]
[1743230623286,7.8519,127.41,127.38,0.05777742]
[1743230624391,7.8523,127.4,127.38,0.05777742]
[1743230625088,7.8519,127.41,127.38,0.05777742]
[1743230628899,7.8523,127.4,127.38,0.05777742]
[1743230632997,9.52455405,127.45,127.39,9.52455405]
[1743230633193,1.5174,127.48,127.41,9.52455405]
[1743230633194,9.52455405,127.47,127.41,9.52455405]
[1743230633401,43.5261826,127.46,127.41,9.5824823]
[1743230633696,43.5261826,127.46,127.41,17.4338823]
[1743230634100,7.8497,127.45,127.41,17.4338823]
[1743230635995,7.8497,127.45,127.42,7.8506]
[1743230638098,7.8497,127.45,127.43,27.88]
[1743230638607,7.8489,127.46,127.43,35.7303]
[1743230638801,9.52455405,127.48,127.43,27.88]
[1743230639001,9.52455405,127.48,127.43,27.93670148]
[1743230639706,7.8495,127.45,127.43,27.93670148]
[1743230640799,9.52455405,127.46,127.43,27.93670148]
[1743230641105,9.52455405,127.46,127.43,0.05670148]
[1743230641705,7.8498,127.44,127.43,0.05670148]
[1743230645611,9.52455405,127.47,127.43,0.05670148]
[1743230646015,7.8495,127.45,127.43,0.05670148]
[1743230646914,9.52455405,127.47,127.43,0.05670148]
[1743230647511,7.8498,127.44,127.43,0.05670148]
[1743230647711,9.52455405,127.47,127.43,0.05670148]
[1743230648410,7.8495,127.45,127.43,0.05670148]
[1743230649007,7.8488,127.46,127.43,0.05670148]
[1743230649403,9.52455405,127.47,127.43,0.05670148]
[1743230649605,17.37275405,127.47,127.43,17.43125553]
[1743230650105,7.8482,127.47,127.43,17.43125553]
[1743230650506,7.8482,127.47,127.44,7.8498]
[1743230658311,17.37165405,127.49,127.45,17.37355405]
[1743230658606,17.37165405,127.49,127.45,45.25355405]
[1743230658808,17.37165405,127.49,127.46,0.05711134]
[1743230659207,7.8474,127.48,127.46,0.05711134]
[1743230659712,7.8479,127.47,127.46,0.05711134]
[1743230660011,17.37245405,127.47,127.46,0.05711134]
[1743230664218,7.8507,127.43,127.41,9.52455405]
[1743230664512,9.52455405,127.42,127.36,157.7357802]
[1743230664922,7.8533,127.39,127.36,157.7357802]
[1743230665417,7.90337562,127.39,127.36,157.78640299]
[1743230667215,7.90337562,127.39,127.36,37.43517684]
[1743230669522,7.90337562,127.39,127.36,45.28977684]
[1743230669924,0.05007562,127.39,127.36,45.28977684]
[1743230670117,0.05007562,127.39,127.37,7.854]
[1743230673628,0.05007562,127.39,127.38,9.52455405]
[1743230678732,0.05007562,127.39,127.38,17.37805405]
[1743230678928,0.05007562,127.39,127.38,9.52455405]
[1743230683541,7.90287562,127.39,127.38,9.52455405]
[1743230684042,7.8541,127.37,127.36,37.43517684]
[1743230684844,7.8541,127.37,127.36,0.05062279]
[1743230686148,7.8562,127.34,127.31,39.48845405]
[1743230686744,7.8566,127.33,127.31,39.48845405]
[1743230687047,9.52455405,127.35,127.3,9.52455405]
[1743230687250,9.52455405,127.35,127.3,17.38245405]
[1743230687548,0.05218044,127.34,127.32,9.52455405]
[1743230687749,9.52455405,127.37,127.33,27.88]
[1743230687947,0.05403812,127.34,127.33,27.88]
[1743230688854,0.05403812,127.34,127.32,9.58231206]
[1743230689851,7.91023812,127.34,127.32,9.58231206]
[1743230691052,7.8565,127.33,127.32,9.58231206]
[1743230691251,7.8565,127.33,127.32,0.05775801]
[1743230692548,0.05403812,127.34,127.32,0.05775801]
[1743230692750,7.91023812,127.34,127.32,0.05775801]
[1743230694156,0.05403812,127.34,127.32,7.91485801]
[1743230695257,0.05403812,127.34,127.32,17.43941206]
[1743230696752,0.05403812,127.34,127.33,7.8565]
[1743230697961,0.05403812,127.34,127.32,17.43921206]
[1743230698862,0.05403812,127.34,127.33,7.8565]
[1743230701566,78.52226516,127.4,127.36,7.8546]
[1743230701959,20.40045189,127.4,127.36,7.8546]
[1743230702160,7.8532,127.39,127.36,7.8546]
[1743230702762,7.90920069,127.39,127.36,7.91146603]
[1743230706668,0.05600069,127.39,127.37,7.854]
[1743230706862,0.05600069,127.39,127.37,9.52455405]
[1743230707267,0.05600069,127.39,127.37,17.37815405]
[1743230708064,0.05600069,127.39,127.36,0.05686603]
[1743230708267,9.52455405,127.38,127.36,0.05686603]
[1743230708567,7.8541,127.37,127.36,0.05686603]
[1743230712865,7.8569,127.33,127.31,37.40455405]
[1743230713865,7.9096356,127.33,127.31,9.58267209]
[1743230714169,7.9096356,127.33,127.31,37.46267209]
[1743230715270,0.0527356,127.33,127.31,37.46267209]
[1743230716370,7.9093356,127.33,127.31,37.46267209]
[1743230718778,7.8572,127.32,127.31,37.46267209]
[1743230718975,7.8572,127.32,127.31,0.05811804]
[1743230723079,17.38175405,127.32,127.31,0.05811804]
[1743230737477,7.8596,127.28,127.27,259.0]
[1743230737683,7.8596,127.28,127.26,37.40455405]
[1743230737982,9.52455405,127.3,127.26,27.88]
[1743230738276,9.52455405,127.3,127.25,35.741]
[1743230738482,7.8615,127.25,127.24,2.1616]
[1743230738684,9.52455405,127.26,127.22,157.7557802]
[1743230738982,7.8621,127.24,127.23,0.05113985]
[1743230740280,17.38665405,127.24,127.23,0.05113985]
[1743230740475,0.05275623,127.25,127.23,0.05113985]
[1743230740476,7.91465623,127.25,127.23,0.05113985]
[1743230742586,0.05275623,127.25,127.23,0.05113985]
[1743230742986,0.05275623,127.25,127.23,27.93113985]
[1743230744181,0.05275623,127.25,127.23,29.97843985]